fUSD/lending_fUSD_20250502
["ID","MTS","AMOUNT","RATE_DAILY","PERIOD"]
[359588023,1746165032885,-898.38770911,0.00019864,2]
[359588024,1746165032894,-898.38770911,0.00019864,2]
[359588025,1746165032903,-898.38770911,0.00019864,2]
[359588026,1746165032911,-898.38770911,0.00019864,2]
[359588027,1746165032920,-898.38770911,0.00019864,2]
[359588028,1746165032930,-898.38770911,0.00019864,2]
[359588029,1746165032939,-898.38770911,0.00019864,2]
[359588030,1746165032948,-898.38770911,0.00019864,2]
[359588031,1746165032958,-898.38770911,0.00019864,2]
[359588032,1746165032967,-898.38770911,0.00019864,2]
[359588033,1746165032976,-898.38770911,0.00019864,2]
[359588034,1746165032986,-898.38770911,0.00019864,2]
[359588035,1746165032995,-898.38770911,0.00019864,2]
[359588036,1746165033006,-898.38770911,0.00019864,2]
[359588037,1746165033016,-898.38770911,0.00019864,2]
[359588038,1746165033026,-898.38770911,0.00019864,2]
[359588039,1746165033035,-898.38770911,0.00019864,2]
[359588040,1746165033045,-898.38770911,0.00019864,2]
[359588041,1746165033055,-898.38770911,0.00019864,2]
[359588042,1746165033065,-898.38770911,0.00019864,2]
[359588043,1746165033076,-898.38770911,0.00019864,2]
[359588044,1746165033086,-898.38770911,0.00019864,2]
[359588045,1746165033096,-898.38770911,0.00019864,2]
[359588046,1746165033106,-898.38770911,0.00019864,2]
[359588047,1746165033115,-898.38770911,0.00019864,2]
[359588048,1746165033126,-898.38770911,0.00019864,2]
[359588049,1746165033136,-898.38770911,0.00019864,2]
[359588050,1746165033145,-898.38770911,0.00019864,2]
[359588051,1746165033155,-898.3877091,0.00019864,2]
[359588052,1746165033164,-898.3877091,0.00019864,2]
[359588053,1746165033174,-898.3877091,0.00019864,2]
[359588054,1746165033184,-898.3877091,0.00019864,2]
[359588055,1746165033193,-898.3877091,0.00019864,2]
[359588056,1746165033202,-898.3877091,0.00019864,2]
[359588057,1746165033212,-898.3877091,0.00019864,2]
[359588058,1746165033223,-898.38770908,0.00019864,2]
[359588059,1746165033233,-398.0,0.00019864,2]
[359588060,1746165033244,-1826.55476691,0.00019865,2]
[359588061,1746165033258,-12500.0,0.00019865,2]
[359588062,1746165033269,-12500.0,0.00019874,2]
[359588063,1746165033280,-1826.55476691,0.00019876,2]
[359588064,1746165033290,-12500.0,0.00019882,2]
[359588065,1746165033302,-182.95549554,0.00019886,2]
[359588066,1746165033311,-449.1436517,0.00019886,2]
[359588067,1746165033323,-919.21471444,0.00019886,2]
[359588068,1746165033336,-387.13222533,0.00019886,2]
[359588069,1746165033352,-17558.9117573,0.00019886,2]
[359588070,1746165033363,-845.72788746,0.00019886,2]
[359588071,1746165033374,-626.0537296,0.00019886,2]
[359588072,1746165033494,-2692.42649373,0.00019886,2]
[359588075,1746165037777,-158.21966123,0.000198,2]
[359588076,1746165037786,-207.90819643,0.00019886,2]
[359588077,1746165037834,-14413.50651691,0.00019886,2]
[359588078,1746165037845,-1529.9557274,0.00019886,2]
[359588079,1746165037857,-9014.92337455,0.00019886,2]
[359588086,1746165038663,-20269.91582515,0.00019886,2]
[359588087,1746165038673,-1826.55476691,0.00019888,2]
[359588088,1746165038683,-12500.0,0.00019891,2]
[359588089,1746165038692,-225.0,0.000199,2]
[359588090,1746165038702,-12500.0,0.000199,2]
[359588091,1746165038711,-1823.805,0.000199,2]
[359588092,1746165038720,-171.439,0.000199,2]
[359588093,1746165038730,-162.23859143,0.000199,2]
[359588094,1746165038739,-68155.5259897,0.000199,2]
[359588095,1746165038748,-1826.55476691,0.000199,2]
[359588096,1746165038757,-182.95549554,0.000199,2]
[359588097,1746165038767,-207.4,0.00019953,2]
[359588098,1746165038776,-151.0,0.00019954,2]
[359588099,1746165038786,-591.19722479,0.00019973,2]
[359588100,1746165038796,-499.52427939,0.00019973,2]
[359588101,1746165038805,-500.0,0.00019973,2]
[359588102,1746165038815,-160.11771949,0.00019973,2]
[359588103,1746165038825,-497.13315034,0.00019973,2]
[359588104,1746165038834,-500.70350874,0.00019973,2]
[359588105,1746165038843,-500.0,0.00019973,2]
[359588106,1746165038853,-500.0,0.00019973,2]
[359588107,1746165038862,-500.0,0.00019973,2]
[359588108,1746165038872,-500.0,0.00019973,2]
[359588109,1746165038881,-200.65801217,0.00019985,2]
[359588110,1746165038890,-394.90419617,0.00019985,2]
[359588111,1746165038900,-5977.6649968,0.00019986,2]
[359588112,1746165038909,-55858.7268555,0.00019986,2]
[359588113,1746165038919,-3496.4934387,0.00019986,2]
[359588114,1746165038928,-536.82485784,0.00019999,2]
[359588115,1746165038937,-300.0,0.00019999,2]
[359588116,1746165038946,-300.0,0.00019999,2]
[359588117,1746165038956,-546.53360989,0.00019999,2]
[359588118,1746165038965,-527.0,0.00019999,2]
[359588119,1746165038974,-186.48852192,0.0002,2]
[359588120,1746165038984,-724295.49124355,0.0002,2]
[359588121,1746165038993,-1254534.22972644,0.0002,2]
[359588122,1746165039002,-900800.51910522,0.0002,2]
[359588123,1746165039034,-1453.02210917,0.0002,2]
[359588124,1746165039045,-531.63683674,0.0002,2]
[359588125,1746165039056,-3279.73300446,0.0002,2]
[359588135,1746165040140,-657.96086,0.0002,2]
[359588136,1746165040333,-933.36463944,0.0002,2]
[359588137,1746165040439,-14.56953869,0.0002,2]
[359588138,1746165040451,-4049.2901138,0.0002,2]
[359588139,1746165040462,-542500.0,0.0002,2]
[359588146,1746165044004,-571.02940977,0.0002,2]
[359588147,1746165044232,-1060.0,0.0002,2]
[359588153,1746165045804,-3874.52,0.0002,2]
[359588154,1746165045883,-4000.0,0.0002,2]
[359588155,1746165046038,-436.57640236,0.0002,2]
[359588174,1746165125134,223.52,0.00030137,120]
[359588178,1746165557638,600.0,0.00032876,60]
[359588179,1746165668577,-250.0,0.00019321,2]
[359588193,1746166013860,753.21,0.00017438,2]
[359588194,1746166081707,1000.0,0.00032,120]
[359588197,1746166184487,1246.79,0.00019233,2]
[359588198,1746166184508,629.5,0.00019233,2]
[359588199,1746166203158,2000.0,0.0002,4]
[359588200,1746166211237,1370.5,0.00019168,2]
[359588201,1746166211260,1857.44,0.00019168,2]
[359588205,1746166232042,-250.0,0.00019515,2]
[359588206,1746166232052,-200.0,0.00019515,2]
[359588207,1746166232061,-200.0,0.00019535,2]
[359588208,1746166232071,-200.0,0.00019559,2]
[359588209,1746166232081,-200.0,0.00019586,2]
[359588210,1746166232091,-984.29,0.00019632,2]
[359588211,1746166232101,-753.21,0.00019702,2]
[359588212,1746166232110,-225.0,0.00019706,2]
[359588213,1746166232120,-155.5769965,0.00019799,2]
[359588214,1746166232129,-166.62213876,0.00019831,2]
[359588215,1746166232139,-186.39,0.00019862,2]
[359588216,1746166232148,-1200.0,0.00019884,2]
[359588217,1746166232157,-756.5140402,0.00019885,2]
[359588218,1746166232167,-300.0,0.00019885,2]
[359588219,1746166232176,-2500.0,0.00019886,2]
[359588220,1746166232186,-2260.7658,0.00019886,2]
[359588221,1746166232195,-1547.8395,0.00019886,2]
[359588222,1746166232204,-19665.65188213,0.00019899,2]
[359588223,1746166232215,-7320.0,0.00019899,2]
[359588224,1746166232234,-1579.13148732,0.00019899,2]
[359588225,1746166232253,-450.037073,0.00019899,2]
[359588226,1746166232264,-2383.11465755,0.00019899,2]
[359588227,1746166232274,-759.4016,0.000199,2]
[359588228,1746166232283,-1000.0,0.000199,2]
[359588229,1746166232293,-2500.0,0.000199,2]
[359588230,1746166232303,-2500.0,0.000199,2]
[359588231,1746166232313,-162.23859141,0.000199,2]
[359588232,1746166232324,-571.17732568,0.000199,2]
[359588233,1746166232334,-218.4520315,0.000199,2]
[359588234,1746166232344,-1011.25840374,0.000199,2]
[359588235,1746166232353,-153.33264665,0.000199,2]
[359588236,1746166232363,-207.4,0.00019953,2]
[359588237,1746166232373,-500.0,0.00019973,2]
[359588238,1746166232383,-500.0,0.00019973,2]
[359588239,1746166232392,-504.39760578,0.00019973,2]
[359588240,1746166232401,-500.0,0.00019973,2]
[359588241,1746166232411,-167.45767241,0.00019973,2]
[359588242,1746166232420,-250.0,0.00019984,2]
[359588243,1746166232430,-1459.044,0.00019985,2]
[359588244,1746166232439,-171.439,0.00019985,2]
[359588245,1746166232449,-5774.2070475,0.00019986,2]
[359588246,1746166232458,-28703.02793555,0.00019986,2]
[359588247,1746166232471,-9131.20771,0.00019986,2]
[359588248,1746166232483,-7382.376725,0.00019986,2]
[359588249,1746166232494,-6127.228,0.00019986,2]
[359588250,1746166232506,-5363.23904723,0.00019986,2]
[359588251,1746166232517,-1924.34823689,0.00019986,2]
[359588252,1746166238279,-500.0,0.00019899,2]
[359588253,1746166238289,-500.0,0.00019899,2]
[359588254,1746166238299,-500.0,0.00019899,2]
[359588255,1746166238308,-500.0,0.00019899,2]
[359588256,1746166238318,-244.8611405,0.00019899,2]
[359588257,1746166238330,-255.1388595,0.00019899,2]
[359588258,1746166238340,-500.0,0.00019899,2]
[359588259,1746166238349,-500.0,0.00019899,2]
[359588261,1746166238358,-500.0,0.00019899,2]
[359588263,1746166238367,-500.0,0.00019899,2]
[359588265,1746166238377,-500.0,0.00019899,2]
[359588267,1746166238386,-500.0,0.00019899,2]
[359588269,1746166238395,-194.52240682,0.00019899,2]
[359588271,1746166238404,-69223.02146343,0.00019986,2]
[359588273,1746166238413,-3507.1432192,0.00019986,2]
[359588275,1746166238422,-316.78230581,0.00019986,2]
[359588277,1746166238431,-7763.452169,0.00019986,2]
[359588279,1746166238440,-536.82485784,0.00019999,2]
[359588281,1746166238449,-300.0,0.00019999,2]
[359588283,1746166238458,-546.53360989,0.00019999,2]
[359588285,1746166238467,-276.43293732,0.00019999,2]
[359588286,1746166238476,-623.0,0.0002,2]
[359588288,1746166238485,-186.48852192,0.0002,2]
[359588290,1746166238494,-724329.41646623,0.0002,2]
[359588292,1746166238503,-545719.36373896,0.0002,2]
[359588294,1746166238512,-153.78232717,0.0002,2]
[359588295,1746166238521,-151.0,0.0002,2]
[359588296,1746166238531,-1528440.67762047,0.0002,2]
[359588297,1746166238562,-1153.86737547,0.0002,2]
[359588298,1746166238574,-459.13262453,0.0002,2]
[359588327,1746166240267,-571.03566511,0.00019986,2]
[359588378,1746166243607,-762.77899729,0.00019986,2]
[359588386,1746166243673,-1594.4182349,0.00019986,2]
[359588388,1746166243683,-666.34759782,0.0002,2]
[359588391,1746166246116,-11069.49585945,0.0002,2]
[359588392,1746166246188,-1064.68800062,0.0002,2]
[359588393,1746166246199,-7737.52,0.0002,2]
[359588394,1746166246301,-1936.0,0.0002,2]
[359588395,1746166246455,-460.69545947,0.0002,2]
[359588411,1746166363055,142.56,0.0001902,2]
[359588412,1746166363081,82.44,0.0001902,2]
[359588413,1746166429927,600.0,0.00032877,60]
[359588414,1746166451405,616.40372457,0.0003,30]
[359588416,1746166586581,200.0,0.00018961,2]
[359588417,1746166687371,313.96538126,0.00032877,60]
[359588418,1746166692398,150.0,0.00018931,2]
[359588420,1746166772083,1230.37,0.00018931,2]
[359588421,1746166815593,250.0,0.00017,2]
[359588422,1746166816653,169.63,0.00019,2]
[359588423,1746166816675,130.37,0.00019,2]
[359588424,1746166888752,236.64345573,0.0003,120]
[359588425,1746167012846,258.24607885,0.0003,30]
[359588426,1746167052752,777.88,0.00017025,2]
[359588427,1746167052961,777.88,0.00019289,2]
[359588428,1746167167047,200.0,0.00018903,2]
[359588429,1746167179672,1111.3815339,0.00019,2]
[359588430,1746167187484,162.28,0.00018903,2]
[359588431,1746167198513,1000.0,0.00018903,2]
[359588433,1746167251639,99093.0,0.00032877,60]
[359588434,1746167276887,534.43163908,0.00019985,7]
[359588435,1746167361946,27789.56,0.00018903,2]
[359588436,1746167376039,197.0,0.000193,2]
[359588437,1746167402082,2000.0,0.0002,4]
[359588468,1746167432802,-939.63755325,0.00019419,2]
[359588469,1746167432812,-250.0,0.00019439,2]
[359588470,1746167432821,-40.73389844,0.00019459,2]
[359588471,1746167432832,-109.75034164,0.00019459,2]
[359588472,1746167432841,-165.9,0.00019519,2]
[359588473,1746167432850,-1652.61029142,0.00019519,3]
[359588474,1746167432874,-332.26095277,0.00019519,3]
[359588475,1746167433246,23890.0,0.00018895,2]
[359588477,1746167438189,-2244.86114067,0.00019519,3]
[359588478,1746167438218,-1056.52243708,0.00019519,3]
[359588479,1746167438370,-1108.35672561,0.00019519,3]
[359588480,1746167438379,-546.66327439,0.00019599,2]
[359588481,1746167438390,-653.33672561,0.00019599,2]
[359588482,1746167438399,-575.6157526,0.000196,2]
[359588483,1746167438454,-123.41101647,0.000196,2]
[359588484,1746167438463,-300.0,0.00019698,2]
[359588485,1746167438474,-106.64037912,0.00019699,2]
[359588486,1746167438486,-396.35962088,0.00019699,2]
[359588487,1746167438495,-6325.8792,0.00019786,2]
[359588488,1746167438506,-155.5769965,0.00019799,2]
[359588489,1746167438515,-451.51442981,0.00019825,2]
[359588490,1746167438525,-334.38948234,0.00019833,2]
[359588491,1746167438534,-334.38948227,0.0001984,2]
[359588492,1746167438544,-799.0,0.00019847,2]
[359588493,1746167438553,-334.38948227,0.00019848,2]
[359588494,1746167438562,-500.0,0.00019848,2]
[359588495,1746167438571,-500.0,0.00019848,2]
[359588496,1746167438581,-500.0,0.00019848,2]
[359588497,1746167438591,-500.0,0.00019848,2]
[359588498,1746167438600,-500.0,0.00019848,2]
[359588499,1746167438609,-500.0,0.00019848,2]
[359588500,1746167438618,-500.0,0.00019848,2]
[359588501,1746167438628,-500.0,0.00019848,2]
[359588502,1746167438637,-500.0,0.00019848,2]
[359588503,1746167438646,-500.0,0.00019848,2]
[359588504,1746167438656,-500.0,0.00019848,2]
[359588505,1746167438665,-500.0,0.00019848,2]
[359588506,1746167438675,-500.0,0.00019848,2]
[359588507,1746167438685,-500.0,0.00019848,2]
[359588508,1746167438695,-156.21266213,0.00019848,2]
[359588509,1746167438704,-500.0,0.00019848,2]
[359588510,1746167438714,-500.0,0.00019848,2]
[359588511,1746167438724,-500.0,0.00019848,2]
[359588512,1746167438734,-500.0,0.00019848,2]
[359588513,1746167438743,-500.0,0.00019848,2]
[359588514,1746167438753,-500.0,0.00019848,2]
[359588521,1746167439027,-500.0,0.00019848,2]
[359588522,1746167439038,-500.0,0.00019848,2]
[359588523,1746167439047,-500.0,0.00019848,2]
[359588524,1746167439057,-313.48057001,0.00019848,2]
[359588525,1746167439066,-500.0,0.00019848,2]
[359588526,1746167439079,-500.0,0.00019848,2]
[359588527,1746167439088,-500.0,0.00019848,2]
[359588528,1746167439098,-500.0,0.00019848,2]
[359588529,1746167439108,-500.0,0.00019848,2]
[359588530,1746167439119,-500.0,0.00019848,2]
[359588531,1746167439131,-500.0,0.00019848,2]
[359588532,1746167439140,-500.0,0.00019848,2]
[359588533,1746167439151,-500.0,0.00019848,2]
[359588534,1746167439161,-500.0,0.00019848,2]
[359588535,1746167439170,-500.0,0.00019848,2]
[359588536,1746167439179,-500.0,0.00019848,2]
[359588537,1746167439188,-500.0,0.00019848,2]
[359588538,1746167439198,-500.0,0.00019848,2]
[359588539,1746167439207,-500.0,0.00019848,2]
[359588540,1746167439217,-500.0,0.00019848,2]
[359588541,1746167439226,-500.0,0.00019848,2]
[359588542,1746167439236,-500.0,0.00019848,2]
[359588543,1746167439246,-500.0,0.00019848,2]
[359588544,1746167439256,-500.0,0.00019848,2]
[359588545,1746167439266,-500.0,0.00019848,2]
[359588546,1746167439275,-500.0,0.00019848,2]
[359588547,1746167439285,-500.0,0.00019848,2]
[359588548,1746167439294,-500.0,0.00019848,2]
[359588549,1746167439303,-500.0,0.00019848,2]
[359588550,1746167439313,-500.0,0.00019848,2]
[359588551,1746167439322,-645.94228556,0.00019848,2]
[359588552,1746167439332,-500.0,0.00019848,2]
[359588553,1746167439341,-46362.38821971,0.00019849,2]
[359588554,1746167439350,-187.16429517,0.00019849,2]
[359588555,1746167439359,-200.0,0.00019849,2]
[359588556,1746167439369,-334.38948227,0.00019855,2]
[359588557,1746167439379,-334.38948227,0.00019863,2]
[359588558,1746167439388,-732.26901713,0.0001987,2]
[359588559,1746167439397,-334.38948227,0.0001987,2]
[359588560,1746167439406,-334.38948227,0.00019878,2]
[359588561,1746167439416,-1000.0,0.00019885,2]
[359588562,1746167439425,-166.0610156,0.00019885,2]
[359588563,1746167439434,-334.38948227,0.00019885,2]
[359588564,1746167439443,-22835.6483,0.00019886,2]
[359588565,1746167439453,-334.38948227,0.00019893,2]
[359588566,1746167439462,-251.05216898,0.00019894,2]
[359588567,1746167439471,-500.0,0.000199,2]
[359588568,1746167439481,-507.2784,0.000199,2]
[359588569,1746167439490,-5051.7594,0.000199,2]
[359588570,1746167439499,-31169.0435,0.000199,2]
[359588571,1746167439509,-2457.7269,0.000199,2]
[359588572,1746167439519,-184.48658408,0.000199,2]
[359588573,1746167439529,-334.38948227,0.000199,2]
[359588574,1746167439538,-8107.57176111,0.000199,2]
[359588575,1746167439547,-170.44898867,0.000199,2]
[359588576,1746167439557,-200.0,0.00019911,2]
[359588577,1746167439568,-1167.235,0.00019933,2]
[359588578,1746167439577,-171.44,0.00019933,2]
[359588579,1746167439587,-594.42177226,0.0001995,2]
[359588580,1746167439596,-207.4,0.00019953,2]
[359588581,1746167439607,-151.53,0.00019956,2]
[359588582,1746167439617,-151.53,0.00019962,2]
[359588583,1746167439627,-151.53,0.00019968,2]
[359588584,1746167439636,-500.0,0.00019973,2]
[359588585,1746167439646,-500.0,0.00019973,2]
[359588586,1746167439655,-500.0,0.00019973,2]
[359588587,1746167439665,-151.53,0.00019974,2]
[359588588,1746167439674,-151.53,0.0001998,2]
[359588589,1746167439683,-1162.33,0.00019984,2]
[359588590,1746167439693,-450.0,0.00019984,2]
[359588591,1746167439702,-942.62,0.00019984,2]
[359588592,1746167439711,-605.96,0.00019984,2]
[359588593,1746167439720,-919.98,0.00019984,2]
[359588594,1746167439730,-450.0,0.00019984,2]
[359588595,1746167439739,-776.46,0.00019984,2]
[359588596,1746167439748,-450.0,0.00019984,2]
[359588597,1746167439758,-1393.99,0.00019984,2]
[359588598,1746167439767,-1316.19,0.00019984,2]
[359588599,1746167439776,-450.0,0.00019984,2]
[359588600,1746167439785,-450.0,0.00019984,2]
[359588601,1746167439795,-735.05,0.00019984,2]
[359588602,1746167439804,-1698.16,0.00019984,2]
[359588603,1746167439814,-699.83,0.00019984,2]
[359588604,1746167439823,-868.6,0.00019984,2]
[359588605,1746167439832,-450.0,0.00019984,2]
[359588606,1746167439842,-14957.5,0.00019984,2]
[359588607,1746167439851,-527.09,0.00019984,2]
[359588608,1746167439860,-474.82,0.00019984,2]
[359588609,1746167439870,-500.75,0.00019984,2]
[359588610,1746167439879,-669.49,0.00019984,2]
[359588611,1746167439889,-1203.06,0.00019984,2]
[359588612,1746167439898,-437.96007436,0.00019984,2]
[359588613,1746167439907,-450.0,0.00019984,2]
[359588614,1746167439917,-1450.41,0.00019984,2]
[359588615,1746167439927,-1210.58,0.00019984,2]
[359588616,1746167439936,-450.0,0.00019984,2]
[359588617,1746167439945,-450.0,0.00019984,2]
[359588618,1746167439955,-236.06016461,0.00019984,2]
[359588619,1746167439965,-2820.16,0.00019984,2]
[359588620,1746167439975,-450.0,0.00019984,2]
[359588621,1746167439985,-518.44,0.00019984,2]
[359588622,1746167439995,-1101.517228,0.00019984,2]
[359588623,1746167440004,-508.45,0.00019984,2]
[359588624,1746167440014,-209.00036875,0.00019984,2]
[359588625,1746167440024,-276.43293732,0.00019984,2]
[359588626,1746167440033,-711.56,0.00019984,2]
[359588627,1746167440043,-450.0,0.00019984,2]
[359588628,1746167440053,-420.30361472,0.00019984,2]
[359588629,1746167440063,-450.0,0.00019984,2]
[359588630,1746167440074,-450.0,0.00019984,2]
[359588631,1746167440085,-450.0,0.00019984,2]
[359588632,1746167440095,-450.0,0.00019985,2]
[359588633,1746167440104,-470.0,0.00019985,2]
[359588634,1746167440115,-518.99099404,0.00019985,2]
[359588635,1746167440124,-450.0,0.00019985,2]
[359588636,1746167440133,-470.0,0.00019985,2]
[359588637,1746167440142,-984.76,0.00019985,2]
[359588638,1746167440154,-550.88153477,0.00019985,2]
[359588639,1746167440163,-513.23602094,0.00019985,2]
[359588640,1746167440172,-1078.1,0.00019985,2]
[359588641,1746167440182,-472.82180918,0.00019985,2]
[359588642,1746167440191,-473.46346792,0.00019985,2]
[359588643,1746167440200,-450.0,0.00019985,2]
[359588644,1746167440209,-549.50027318,0.00019985,2]
[359588645,1746167440218,-526.44962448,0.00019985,2]
[359588646,1746167440228,-450.0,0.00019985,2]
[359588647,1746167440237,-542.562564,0.00019985,2]
[359588648,1746167440246,-500.0,0.00019985,2]
[359588649,1746167440255,-500.0,0.00019985,2]
[359588650,1746167440264,-1895.42,0.00019985,2]
[359588651,1746167440274,-483.93,0.00019985,2]
[359588652,1746167440283,-589.62507924,0.00019985,2]
[359588653,1746167440292,-274.69447579,0.00019985,2]
[359588654,1746167440302,-735.59,0.00019985,2]
[359588655,1746167440312,-158.12635643,0.00019985,2]
[359588656,1746167440321,-500.0,0.00019985,2]
[359588657,1746167440331,-543.98277375,0.00019985,2]
[359588658,1746167440341,-556.1,0.00019985,2]
[359588659,1746167440350,-450.0,0.00019985,2]
[359588660,1746167440360,-177.18309793,0.00019985,2]
[359588661,1746167440369,-575.62187852,0.00019985,2]
[359588662,1746167440379,-820.57,0.00019985,2]
[359588663,1746167440388,-502.12352298,0.00019985,2]
[359588664,1746167440398,-766.75,0.00019985,2]
[359588665,1746167440407,-507.28838955,0.00019985,2]
[359588666,1746167440417,-450.0,0.00019985,2]
[359588667,1746167440426,-500.0,0.00019985,2]
[359588668,1746167440435,-572.95358373,0.00019985,2]
[359588669,1746167440446,-477.50471461,0.00019985,2]
[359588670,1746167440456,-529.20675324,0.00019985,2]
[359588671,1746167440466,-514.05720528,0.00019985,2]
[359588672,1746167440478,-450.0,0.00019985,2]
[359588673,1746167440488,-863.15,0.00019985,2]
[359588674,1746167440497,-470.0,0.00019985,2]
[359588675,1746167440507,-502.86085126,0.00019985,2]
[359588676,1746167440517,-808.28,0.00019985,2]
[359588677,1746167440526,-517.94715813,0.00019985,2]
[359588678,1746167440536,-478.32781497,0.00019985,2]
[359588679,1746167440547,-470.0,0.00019985,2]
[359588680,1746167440556,-501.2,0.00019985,2]
[359588681,1746167440567,-510.3004948,0.00019985,2]
[359588682,1746167440577,-473.37015512,0.00019985,2]
[359588683,1746167440587,-456.7,0.00019985,2]
[359588684,1746167440596,-500.0,0.00019985,2]
[359588685,1746167440607,-188.91175319,0.00019985,2]
[359588686,1746167440616,-450.0,0.00019985,2]
[359588687,1746167440626,-470.0,0.00019985,2]
[359588688,1746167440636,-938.97,0.00019985,2]
[359588689,1746167440645,-496.15403073,0.00019985,2]
[359588690,1746167440655,-500.0,0.00019985,2]
[359588691,1746167440666,-450.0,0.00019985,2]
[359588692,1746167440675,-757.83,0.00019985,2]
[359588693,1746167440685,-848.87,0.00019985,2]
[359588694,1746167440694,-450.0,0.00019985,2]
[359588695,1746167440704,-890.22,0.00019985,2]
[359588696,1746167440714,-604.51,0.00019985,2]
[359588697,1746167440723,-953.53,0.00019985,2]
[359588698,1746167440732,-450.0,0.00019985,2]
[359588699,1746167440742,-521.55728321,0.00019985,2]
[359588700,1746167440752,-739.86,0.00019985,2]
[359588701,1746167440762,-450.0,0.00019985,2]
[359588702,1746167440772,-450.0,0.00019985,2]
[359588703,1746167440781,-2869.19,0.00019985,2]
[359588704,1746167440790,-677.04,0.00019985,2]
[359588705,1746167440800,-631.15,0.00019985,2]
[359588706,1746167440809,-450.0,0.00019985,2]
[359588707,1746167440819,-450.0,0.00019985,2]
[359588708,1746167440828,-450.0,0.00019985,2]
[359588709,1746167440837,-971.99,0.00019985,2]
[359588710,1746167440846,-1414.06,0.00019985,2]
[359588711,1746167440855,-450.0,0.00019985,2]
[359588712,1746167440865,-450.0,0.00019985,2]
[359588713,1746167440874,-450.0,0.00019985,2]
[359588714,1746167440884,-1192.87,0.00019985,2]
[359588715,1746167440894,-777.93,0.00019985,2]
[359588716,1746167440903,-833.99,0.00019985,2]
[359588717,1746167440913,-450.0,0.00019985,2]
[359588718,1746167440922,-220.87125325,0.00019985,2]
[359588719,1746167440931,-450.0,0.00019985,2]
[359588720,1746167440940,-2168.8,0.00019985,2]
[359588721,1746167440950,-450.0,0.00019985,2]
[359588722,1746167440959,-450.0,0.00019985,2]
[359588723,1746167440969,-450.0,0.00019985,2]
[359588724,1746167440978,-450.0,0.00019985,2]
[359588725,1746167440987,-1405.33,0.00019985,2]
[359588726,1746167440996,-1082.5,0.00019985,2]
[359588727,1746167441005,-450.0,0.00019985,2]
[359588728,1746167441014,-479.68894796,0.00019985,2]
[359588729,1746167441023,-450.0,0.00019985,2]
[359588730,1746167441033,-450.0,0.00019985,2]
[359588731,1746167441042,-905.37,0.00019985,2]
[359588732,1746167441051,-479.40318502,0.00019985,2]
[359588733,1746167441060,-526.05,0.00019985,2]
[359588734,1746167441070,-482.89,0.00019985,2]
[359588735,1746167441084,-450.0,0.00019985,2]
[359588736,1746167441095,-1247.49,0.00019985,2]
[359588737,1746167441105,-481.00010173,0.00019985,2]
[359588738,1746167441115,-667.15,0.00019985,2]
[359588739,1746167441124,-817.46,0.00019985,2]
[359588740,1746167441134,-500.0,0.00019985,2]
[359588741,1746167441144,-774.51,0.00019985,2]
[359588742,1746167441155,-450.0,0.00019985,2]
[359588743,1746167441166,-450.0,0.00019985,2]
[359588744,1746167441175,-489.14,0.00019985,2]
[359588745,1746167441185,-835.13,0.00019985,2]
[359588746,1746167441196,-450.0,0.00019985,2]
[359588747,1746167441207,-3126.58,0.00019985,2]
[359588748,1746167441216,-1014.69,0.00019985,2]
[359588749,1746167441226,-1285.97,0.00019985,2]